bitfinex/quotes_BTCUSD_20250614
["timestamp","ask_amount","ask_price","bid_price","bid_amount"]
[1749939151433,0.64064156,105590.0,105580.0,0.48638]
[1749939152091,0.63397415,105590.0,105580.0,0.48638]
[1749939153161,0.64064156,105590.0,105580.0,0.48638]
[1749939153362,0.72846261,105590.0,105580.0,0.48638]
[1749939154009,0.64064156,105590.0,105580.0,0.67580981]
[1749939154165,0.63397415,105590.0,105580.0,0.67580981]
[1749939154363,0.64064156,105590.0,105580.0,0.67580981]
[1749939155455,0.00666741,105590.0,105580.0,0.6852813]
[1749939155606,0.04535669,105600.0,105590.0,0.28072283]
[1749939155804,0.22808335,105600.0,105590.0,0.27125278]
[1749939156005,0.22808335,105600.0,105590.0,0.26178246]
[1749939156326,0.21861402,105600.0,105590.0,0.0629]
[1749939156705,0.18939393,105600.0,105590.0,0.26178246]
[1749939156912,0.18939393,105600.0,105590.0,0.04237059]
[1749939157427,0.18939393,105600.0,105590.0,0.07237059]
[1749939157827,0.18939393,105600.0,105590.0,0.33679059]
[1749939158226,0.23830746,105600.0,105590.0,0.52620246]
[1749939158436,0.23830746,105600.0,105590.0,0.53567296]
[1749939158628,0.23830746,105600.0,105590.0,0.52620246]
[1749939158830,0.22883786,105600.0,105590.0,0.32732]
[1749939159441,0.67340014,105600.0,105590.0,0.32732]
[1749939159969,0.68893321,105600.0,105590.0,0.32732]
[1749939160263,0.68227619,105600.0,105590.0,0.32732]
[1749939160466,0.68893322,105600.0,105590.0,0.32732]
[1749939160837,0.69559025,105600.0,105590.0,0.32732]
[1749939161060,0.6867142,105600.0,105590.0,0.32732]
[1749939161470,0.69559025,105600.0,105590.0,0.32732]
[1749939161652,0.69559024,105600.0,105590.0,0.32732]
[1749939161857,0.68005717,105600.0,105590.0,0.32732]
[1749939162053,0.6889332,105600.0,105590.0,0.32732]
[1749939162288,0.69559024,105600.0,105590.0,0.32732]
[1749939162476,0.6867142,105600.0,105590.0,0.32732]
[1749939162653,0.79173947,105600.0,105590.0,0.32732]
[1749939162852,0.79173947,105600.0,105590.0,0.4838]
[1749939162853,0.79173953,105600.0,105590.0,0.4838]
[1749939163068,1.2274257,105600.0,105590.0,0.26442]
[1749939163277,1.36434396,105600.0,105590.0,0.26442]
[1749939163496,1.35546774,105600.0,105590.0,0.26442]
[1749939163702,1.35546775,105600.0,105590.0,0.26442]
[1749939164136,1.35546776,105600.0,105590.0,0.26442]
[1749939164339,1.35546796,105600.0,105590.0,0.26442]
[1749939164519,1.35546802,105600.0,105590.0,0.26442]
[1749939164915,1.34881043,105600.0,105590.0,0.26442]
[1749939165238,1.35546802,105600.0,105590.0,0.26442]
[1749939165409,1.25266121,105600.0,105590.0,0.26442]
[1749939165982,1.2593188,105600.0,105590.0,0.26442]
[1749939166395,1.25266121,105600.0,105590.0,0.26442]
[1749939166603,1.2593188,105600.0,105590.0,0.26442]
[1749939166829,1.28774336,105600.0,105590.0,0.26442]
[1749939167413,1.28774335,105600.0,105590.0,0.26442]
[1749939167753,1.28774336,105600.0,105590.0,0.26442]
[1749939167958,1.28108577,105600.0,105590.0,0.26442]
[1749939168225,1.28774336,105600.0,105590.0,0.26442]
[1749939168786,1.28108577,105600.0,105590.0,0.26442]
[1749939168990,1.28774336,105600.0,105590.0,0.26442]
[1749939169197,1.25594336,105600.0,105590.0,0.26442]
[1749939169400,1.35209258,105600.0,105590.0,0.26442]
[1749939170522,1.38489257,105600.0,105590.0,0.26442]
[1749939171294,1.34543499,105600.0,105590.0,0.26442]
[1749939171447,1.35210253,105600.0,105590.0,0.26442]
[1749939171652,1.24928577,105600.0,105590.0,0.26442]
[1749939171862,1.25595331,105600.0,105590.0,0.26442]
[1749939172504,1.25423512,105600.0,105590.0,0.26442]
[1749939172707,1.26090266,105600.0,105590.0,0.26442]
[1749939172880,1.25423512,105600.0,105590.0,0.26442]
[1749939173217,1.26090266,105600.0,105590.0,0.26442]
[1749939174155,1.25423512,105600.0,105590.0,0.26442]
[1749939174372,1.26090266,105600.0,105590.0,0.26442]
[1749939174579,1.25423512,105600.0,105590.0,0.26442]
[1749939174745,1.61772519,105600.0,105590.0,0.26442]
[1749939175099,1.66482519,105600.0,105590.0,0.26442]
[1749939175245,1.67149312,105600.0,105590.0,0.26442]
[1749939175453,1.67149312,105600.0,105580.0,0.48216]
[1749939175454,0.19888228,105590.0,105580.0,0.48216]
[1749939175663,0.73578657,105590.0,105580.0,0.48216]
[1749939175858,0.74245464,105590.0,105580.0,0.48216]
[1749939176063,0.74245463,105590.0,105580.0,0.48216]
[1749939176459,0.74245464,105590.0,105580.0,0.48216]
[1749939176660,0.74245458,105590.0,105580.0,0.48316]
[1749939176862,0.73578657,105590.0,105580.0,0.48316]
[1749939177124,0.65011255,105590.0,105580.0,0.48416]
[1749939177621,0.64344456,105590.0,105580.0,0.48416]
[1749939178045,0.65011252,105590.0,105580.0,0.48416]
[1749939178274,0.65011253,105590.0,105580.0,0.48416]
[1749939179650,0.64344456,105590.0,105580.0,0.48416]
[1749939181029,0.73959378,105590.0,105580.0,0.48416]
[1749939181436,0.7462426,105590.0,105580.0,0.48416]
[1749939181635,0.74624261,105590.0,105580.0,0.48416]
[1749939181838,0.73959378,105590.0,105580.0,0.48416]
[1749939181991,0.74624262,105590.0,105580.0,0.48416]
[1749939183098,0.74624256,105590.0,105580.0,0.48416]
[1749939183295,0.74624262,105590.0,105580.0,0.48416]
[1749939183535,0.74624262,105590.0,105580.0,0.48216]
[1749939183661,0.73959378,105590.0,105580.0,0.48216]
[1749939183916,0.74624262,105590.0,105580.0,0.48216]
[1749939185167,0.73959378,105590.0,105580.0,0.48216]
[1749939185546,0.74624262,105590.0,105580.0,0.48216]
[1749939185959,0.73959378,105590.0,105580.0,0.48212]
[1749939186159,0.74624262,105590.0,105580.0,0.48212]
[1749939186385,0.73959378,105590.0,105580.0,0.48212]
[1749939186590,0.74624265,105590.0,105580.0,0.48212]
[1749939187226,0.73959378,105590.0,105580.0,0.48212]
[1749939187801,0.74626183,105590.0,105580.0,0.48212]
[1749939188001,0.74626183,105590.0,105580.0,0.26442]
[1749939188002,1.28635443,105590.0,105580.0,0.26442]
[1749939188212,1.33299546,105590.0,105580.0,0.26442]
[1749939188422,1.33299553,105590.0,105580.0,0.26442]
[1749939188703,1.36141685,105590.0,105580.0,0.26442]
[1749939188892,1.35474849,105590.0,105580.0,0.26442]
[1749939189451,1.45089771,105590.0,105580.0,0.26442]
[1749939189654,1.45756618,105590.0,105580.0,0.26442]
[1749939190417,1.32264849,105590.0,105580.0,0.26442]
[1749939190779,1.32931696,105590.0,105580.0,0.26442]
[1749939190986,1.32264849,105590.0,105580.0,0.26442]
[1749939191182,1.32931696,105590.0,105580.0,0.26442]
[1749939191857,1.32264849,105590.0,105580.0,0.26442]
[1749939192062,1.32931696,105590.0,105580.0,0.26442]
[1749939192600,1.32264849,105590.0,105580.0,0.26442]
[1749939192805,1.32931696,105590.0,105580.0,0.26442]
[1749939193241,0.19890112,105580.0,105570.0,0.48639391]
[1749939193452,0.6434634,105580.0,105570.0,0.48639391]
[1749939193661,0.65013187,105580.0,105570.0,0.48639391]
[1749939193876,0.6434634,105580.0,105570.0,0.32999391]
[1749939194076,0.64841275,105580.0,105570.0,0.32999391]
[1749939194280,0.65508122,105580.0,105570.0,0.32999391]
[1749939194512,0.64841275,105580.0,105570.0,0.32999391]
[1749939194694,0.65508122,105580.0,105570.0,0.32999391]
[1749939194931,0.65508122,105580.0,105570.0,0.33099391]
[1749939195489,0.65508122,105580.0,105570.0,0.33199391]
[1749939196251,0.64841275,105580.0,105570.0,0.33199391]
[1749939196468,0.65508122,105580.0,105570.0,0.33199391]
[1749939196887,0.64841275,105580.0,105570.0,0.33199391]
[1749939197281,0.65508122,105580.0,105570.0,0.33199391]
[1749939197492,0.64841275,105580.0,105570.0,0.33199391]
[1749939197697,0.65508124,105580.0,105570.0,0.33199391]
[1749939198063,0.64841275,105580.0,105570.0,0.33199391]
[1749939198671,0.65508124,105580.0,105570.0,0.33199391]
[1749939199303,0.64841275,105580.0,105570.0,0.33199391]
[1749939199509,0.65508124,105580.0,105570.0,0.33199391]
[1749939199985,0.64841275,105580.0,105570.0,0.33199391]
[1749939200190,0.65508124,105580.0,105570.0,0.33199391]
[1749939200408,0.64841275,105580.0,105570.0,0.33199391]
[1749939200664,0.65508124,105580.0,105570.0,0.33199391]
[1749939201341,0.64841275,105580.0,105570.0,0.33199391]
[1749939201964,0.65508123,105580.0,105570.0,0.33199391]
[1749939202710,0.65508118,105580.0,105570.0,0.33199391]
[1749939203195,0.65508124,105580.0,105570.0,0.33199391]
[1749939203392,0.75123046,105580.0,105570.0,0.33199391]
[1749939203716,0.75123045,105580.0,105570.0,0.33199391]
[1749939204127,0.75123046,105580.0,105570.0,0.33199391]
[1749939204559,0.74456197,105580.0,105570.0,0.33199391]
[1749939204791,0.75123041,105580.0,105570.0,0.33199391]
[1749939204989,0.65508121,105580.0,105570.0,0.33199391]
[1749939205186,0.64841275,105580.0,105570.0,0.33199391]
[1749939205412,0.65508123,105580.0,105570.0,0.33199391]
[1749939205893,0.65508122,105580.0,105570.0,0.33199391]
[1749939206085,0.64841275,105580.0,105570.0,0.33199391]
[1749939206346,0.65508123,105580.0,105570.0,0.33199391]
[1749939206527,0.65508121,105580.0,105570.0,0.33199391]
[1749939206688,0.64841275,105580.0,105570.0,0.33199391]
[1749939206884,0.65508121,105580.0,105570.0,0.33199391]
[1749939207109,0.63894144,105580.0,105570.0,0.33199391]
[1749939207266,0.64560989,105580.0,105570.0,0.33199391]
[1749939207675,0.6456099,105580.0,105570.0,0.33199391]
[1749939207875,0.64560989,105580.0,105570.0,0.33199391]
[1749939208309,0.64560992,105580.0,105570.0,0.33199391]
[1749939208516,0.20385047,105580.0,105570.0,0.33199391]
[1749939209021,0.64841275,105580.0,105570.0,0.33199391]
[1749939209194,0.65508123,105580.0,105570.0,0.33199391]
[1749939209554,0.64841275,105580.0,105570.0,0.33199391]
[1749939209964,0.65508119,105580.0,105570.0,0.33199391]
[1749939210169,0.05085969,105580.0,105570.0,0.33199391]
[1749939210403,0.49542197,105580.0,105570.0,0.33199391]
[1749939210601,0.50209039,105580.0,105570.0,0.33199391]
[1749939210831,0.49542197,105580.0,105570.0,0.33199391]
[1749939211031,0.50209039,105580.0,105570.0,0.33199391]
[1749939211240,0.49542197,105580.0,105570.0,0.33199391]
[1749939211447,0.5020904,105580.0,105570.0,0.33199391]
[1749939211642,0.50209039,105580.0,105570.0,0.33199391]
[1749939212880,0.49542197,105580.0,105570.0,0.33199391]
[1749939213039,0.50209039,105580.0,105570.0,0.33199391]
[1749939213431,0.49542197,105580.0,105570.0,0.33199391]
[1749939214056,0.50209039,105580.0,105570.0,0.33199391]
[1749939214949,0.49542197,105580.0,105570.0,0.33199391]
[1749939215351,0.50209039,105580.0,105570.0,0.33199391]
[1749939215785,0.05752811,105580.0,105570.0,0.33199391]
[1749939216003,0.49542197,105580.0,105570.0,0.33199391]
[1749939216156,0.50209039,105580.0,105570.0,0.33199391]
[1749939216508,0.50209035,105580.0,105570.0,0.33199391]
[1749939216739,0.50209036,105580.0,105570.0,0.33199391]
[1749939217944,0.51156158,105580.0,105570.0,0.53091404]
[1749939218139,0.50209034,105580.0,105570.0,0.33199391]
[1749939218367,0.50209032,105580.0,105570.0,0.33199391]
[1749939218562,0.49542197,105580.0,105570.0,0.33199391]
[1749939218782,0.50209031,105580.0,105570.0,0.33199391]
[1749939218930,0.5020903,105580.0,105570.0,0.33199391]
[1749939219127,0.50209031,105580.0,105570.0,0.33199391]
[1749939219955,0.50209032,105580.0,105570.0,0.33199391]
[1749939220156,0.49542197,105580.0,105570.0,0.33199391]
[1749939220523,0.0066682,105580.0,105570.0,1.09056922]
[1749939220739,0.01893965,105590.0,105580.0,0.28334257]
[1749939220955,0.03787984,105590.0,105580.0,0.72790485]
[1749939221817,0.04735025,105590.0,105580.0,0.28334257]
[1749939222939,0.04735097,105590.0,105580.0,0.28334257]
[1749939223149,0.03788047,105590.0,105580.0,0.28334257]
[1749939224331,0.04735097,105590.0,105580.0,0.28334257]
[1749939224536,0.04735097,105590.0,105580.0,0.2738718]
[1749939224849,0.22729297,105590.0,105580.0,0.27387234]
[1749939225884,0.21782301,105590.0,105580.0,0.27387234]
[1749939226146,0.20835278,105590.0,105580.0,0.27387243]
[1749939226389,0.20835278,105590.0,105580.0,0.28334356]
[1749939227662,0.20835278,105590.0,105580.0,0.54776356]
[1749939228548,0.20835278,105590.0,105580.0,0.52882121]
[1749939228740,0.20835278,105590.0,105580.0,0.53829243]
[1749939230179,0.19888237,105590.0,105580.0,0.52882121]
[1749939230356,0.18941187,105590.0,105580.0,0.52882121]
[1749939230554,1.03900888,105600.0,105590.0,0.0626]
[1749939230775,1.03234156,105600.0,105590.0,0.0626]
[1749939230976,1.03900888,105600.0,105590.0,0.0626]
[1749939231661,1.03011912,105600.0,105590.0,0.0626]
[1749939231892,1.03234156,105600.0,105590.0,0.0626]
[1749939232089,1.0234518,105600.0,105590.0,0.0626]
[1749939232238,1.03011912,105600.0,105590.0,0.0626]
[1749939232650,1.01301912,105600.0,105590.0,0.0626]
[1749939232856,1.01524156,105600.0,105590.0,0.0626]
[1749939233215,1.11116834,105600.0,105590.0,0.0323]
[1749939233387,1.10450102,105600.0,105590.0,0.0323]
[1749939233591,1.11116862,105600.0,105590.0,0.0323]
[1749939233821,1.10450102,105600.0,105590.0,0.0323]
[1749939234030,1.11116856,105600.0,105590.0,0.0323]
[1749939234234,1.11116859,105600.0,105590.0,0.0323]
[1749939234977,1.11116857,105600.0,105590.0,0.0632]
[1749939235188,1.11116859,105600.0,105590.0,0.0323]
[1749939235390,1.0083518,105600.0,105590.0,0.0323]
[1749939235598,1.0150193,105600.0,105590.0,0.0323]
[1749939235810,1.0083518,105600.0,105590.0,0.0323]
[1749939235983,1.01501941,105600.0,105590.0,0.0323]
[1749939236428,1.01501939,105600.0,105590.0,0.0323]
[1749939236764,1.1111686,105600.0,105590.0,0.0323]
[1749939237423,1.10450102,105600.0,105590.0,0.0323]
[1749939237583,1.10450102,105600.0,105590.0,0.29672]
[1749939237787,1.1111686,105600.0,105590.0,0.29672]
[1749939238876,1.10450102,105600.0,105590.0,0.29672]
[1749939239394,1.1111686,105600.0,105590.0,0.29672]
[1749939240999,1.10450102,105600.0,105590.0,0.29672]
[1749939241201,1.11116862,105600.0,105590.0,0.29672]
[1749939241603,1.10450102,105600.0,105590.0,0.29672]
[1749939241856,1.11116862,105600.0,105590.0,0.29672]
[1749939242815,1.66651351,105600.0,105590.0,0.26442]
[1749939243027,1.69741351,105600.0,105590.0,0.26442]
[1749939243384,1.69741375,105600.0,105590.0,0.26442]
[1749939243726,1.69074591,105600.0,105590.0,0.26442]
[1749939243946,1.69740785,105600.0,105590.0,0.26442]
[1749939244925,1.69074591,105600.0,105590.0,0.26442]
[1749939245123,1.69740785,105600.0,105590.0,0.26442]
[1749939245672,1.57035863,105600.0,105590.0,0.26442]
[1749939245876,1.12579635,105600.0,105590.0,0.26442]
[1749939246221,1.1257962,105600.0,105590.0,0.26442]
[1749939246389,1.11913441,105600.0,105590.0,0.26442]
[1749939246757,1.12579626,105600.0,105590.0,0.26442]
[1749939246963,1.57035855,105600.0,105590.0,0.26442]
[1749939247367,1.12579627,105600.0,105590.0,0.29472]
[1749939247588,1.1257962,105600.0,105590.0,0.29472]
[1749939247993,0.68123397,105600.0,105590.0,0.29472]
[1749939248199,1.11913441,105600.0,105590.0,0.29472]
[1749939248575,1.15418149,105600.0,105590.0,0.29472]
[1749939248780,1.14751965,105600.0,105590.0,0.29472]
[1749939248980,1.15418149,105600.0,105590.0,0.29472]
[1749939249423,1.15418147,105600.0,105590.0,0.29472]
[1749939249641,1.15418147,105600.0,105590.0,0.32492]
[1749939249835,1.14751965,105600.0,105590.0,0.32492]
[1749939250047,1.12579622,105600.0,105590.0,0.32492]
[1749939250266,1.12579615,105600.0,105590.0,0.32492]
[1749939250470,1.17117349,105600.0,105590.0,0.32492]
[1749939250667,1.17117328,105600.0,105590.0,0.32492]
[1749939250868,1.1645118,105600.0,105590.0,0.32492]
[1749939251066,1.17117327,105600.0,105590.0,0.32492]
[1749939251274,1.17117925,105600.0,105590.0,0.32492]
[1749939251698,1.01501925,105600.0,105590.0,0.32492]
[1749939251899,1.01501928,105600.0,105590.0,0.32492]
[1749939252337,0.66660622,105600.0,105590.0,0.32492]
[1749939252541,1.1111685,105600.0,105590.0,0.32492]
[1749939252741,1.10450102,105600.0,105590.0,0.32492]
[1749939252943,1.11116851,105600.0,105590.0,0.32492]
[1749939253743,1.10450102,105600.0,105590.0,0.32492]
[1749939253951,1.11116851,105600.0,105590.0,0.32492]
[1749939254156,1.0083518,105600.0,105590.0,0.32492]
[1749939254396,1.01501929,105600.0,105590.0,0.32492]
[1749939254604,1.01501928,105600.0,105590.0,0.32492]
[1749939254756,1.01501929,105600.0,105590.0,0.32492]
[1749939255497,1.0083518,105600.0,105590.0,0.32492]
[1749939255722,1.01501929,105600.0,105590.0,0.32492]
[1749939255851,1.0083518,105600.0,105590.0,0.32492]
[1749939256254,1.01501929,105600.0,105590.0,0.32492]
[1749939256656,1.0083518,105600.0,105590.0,0.32492]
[1749939256865,1.01501929,105600.0,105590.0,0.32492]
[1749939257071,1.0083518,105600.0,105590.0,0.32492]
[1749939257258,1.01501929,105600.0,105590.0,0.32492]
[1749939258366,1.01501928,105600.0,105590.0,0.32492]
[1749939258665,1.01501405,105600.0,105590.0,0.32492]
[1749939259409,1.01501402,105600.0,105590.0,0.32492]
[1749939260242,1.0083518,105600.0,105590.0,0.32492]
[1749939260520,1.01501402,105600.0,105590.0,0.32492]
[1749939260730,1.0083518,105600.0,105590.0,0.32492]
[1749939260968,1.01723463,105600.0,105590.0,0.32492]
[1749939261185,1.02389676,105600.0,105590.0,0.32492]
[1749939261392,1.01501394,105600.0,105590.0,0.32492]
[1749939261598,1.02389677,105600.0,105590.0,0.32492]
[1749939261809,1.01501392,105600.0,105590.0,0.32492]
[1749939262011,1.02389674,105600.0,105590.0,0.32492]
[1749939262218,1.01501392,105600.0,105590.0,0.32492]
[1749939262593,1.0083518,105600.0,105590.0,0.32492]
[1749939262824,1.02389672,105600.0,105590.0,0.32492]
[1749939263032,0.57933446,105600.0,105590.0,0.43053972]
[1749939263237,1.01501381,105600.0,105590.0,0.51433187]
[1749939263439,1.0238964,105600.0,105590.0,0.32492]
[1749939263642,1.02389638,105600.0,105590.0,0.33439059]
[1749939263848,1.01501375,105600.0,105590.0,0.52380246]
[1749939264023,1.02389633,105600.0,105590.0,0.52380246]
[1749939264249,1.02389634,105600.0,105590.0,0.52380246]
[1749939264381,1.01501377,105600.0,105590.0,0.52380246]
[1749939264589,1.02389639,105600.0,105590.0,0.52380246]
[1749939264790,1.02389638,105600.0,105590.0,0.52380246]
[1749939264987,1.01501376,105600.0,105590.0,0.52380246]
[1749939265548,1.01723441,105600.0,105590.0,0.32492]
[1749939266040,1.02389638,105600.0,105590.0,0.32492]
[1749939266242,1.0083518,105600.0,105590.0,0.32492]
[1749939266397,1.0238964,105600.0,105590.0,0.32492]
[1749939267174,1.02389639,105600.0,105590.0,0.32492]
[1749939267365,1.02389638,105600.0,105590.0,0.32492]
[1749939267774,1.01723443,105600.0,105590.0,0.32492]
[1749939267978,1.0238964,105600.0,105590.0,0.32492]
[1749939268228,0.23933409,105600.0,105590.0,0.7760715]
[1749939268464,0.22378952,105600.0,105590.0,0.78554182]
[1749939268671,0.6683518,105600.0,105590.0,0.7760715]
[1749939268890,0.68389579,105600.0,105590.0,0.7760715]
[1749939269115,0.67523398,105600.0,105590.0,0.78554182]
[1749939269255,0.68189561,105600.0,105590.0,0.6893926]
[1749939269480,0.67523398,105600.0,105590.0,0.6893926]
[1749939269659,0.67301343,105600.0,105590.0,0.6893926]
[1749939270061,0.68189561,105600.0,105590.0,0.69886283]
[1749939270344,0.06659412,105600.0,105590.0,1.23957433]
[1749939270549,0.06998852,105600.0,105590.0,1.34528605]
[1749939270724,0.07945794,105600.0,105590.0,1.34528605]
[1749939270866,0.06998852,105600.0,105590.0,1.34528605]
[1749939271064,0.07945785,105600.0,105590.0,1.34528605]
[1749939273227,0.01160638,105600.0,105590.0,1.34528605]
[1749939273853,0.00665703,105600.0,105590.0,1.34528605]
[1749939274050,0.20985413,105610.0,105600.0,0.47556489]
[1749939274253,0.20985413,105610.0,105600.0,1.16174196]
[1749939279644,0.20985413,105610.0,105600.0,1.08106893]
[1749939283265,0.21932212,105610.0,105600.0,1.08106893]
[1749939284045,0.20985413,105610.0,105600.0,1.08106893]
[1749939288037,0.20985413,105610.0,105600.0,0.67738665]
[1749939288252,0.20985413,105610.0,105600.0,1.12194893]
[1749939288435,0.20985413,105610.0,105600.0,1.21809815]
[1749939290914,0.06152315,105620.0,105610.0,0.28168132]
[1749939291142,0.06152315,105620.0,105610.0,0.53392308]
[1749939291357,0.05205597,105620.0,105610.0,0.53392308]
[1749939291857,0.0376382,105620.0,105610.0,1.0263942]
[1749939292098,0.4974003,105630.0,105620.0,0.28166069]
[1749939292356,0.4974003,105630.0,105620.0,0.27966069]
[1749939292357,0.06177194,105630.0,105620.0,0.27966069]
[1749939292595,0.49966918,105630.0,105620.0,0.27966069]
[1749939292834,0.04341838,105630.0,105620.0,0.27966069]
[1749939293052,0.08718675,105630.0,105620.0,0.37580991]
[1749939293280,0.06194686,105630.0,105620.0,0.37580991]
[1749939293506,0.07141359,105630.0,105620.0,0.37580991]
[1749939293748,0.06252698,105630.0,105620.0,0.37580991]
[1749939293976,0.08918673,105630.0,105620.0,0.37580991]
[1749939294225,0.08918669,105630.0,105620.0,0.37580991]
[1749939294462,0.05306025,105630.0,105620.0,0.37580991]
[1749939294695,0.07141344,105630.0,105620.0,0.37580991]
[1749939294907,0.0719938,105630.0,105620.0,0.53176991]
[1749939295177,0.51655608,105630.0,105620.0,0.53176991]
[1749939295403,0.54988039,105630.0,105620.0,0.37580991]
[1749939295616,0.54988043,105630.0,105620.0,0.43562069]
[1749939295829,0.54099394,105630.0,105620.0,0.43562069]
[1749939296294,0.53210744,105630.0,105620.0,0.43562069]
[1749939296508,0.54988043,105630.0,105620.0,0.43562069]
[1749939296987,0.54321556,105630.0,105620.0,0.48352953]
[1749939297203,0.54099394,105630.0,105620.0,0.48352953]
[1749939297729,0.54988043,105630.0,105620.0,0.48352953]
[1749939297923,0.54988043,105630.0,105620.0,0.32756953]
[1749939298172,0.54988043,105630.0,105620.0,0.48352953]
[1749939298403,0.54988042,105630.0,105620.0,0.48352953]
[1749939298645,0.54099393,105630.0,105620.0,0.48352953]
[1749939298862,0.52322094,105630.0,105620.0,0.48352953]
[1749939299077,0.52486223,105630.0,105620.0,0.48352953]
[1749939299323,0.51595312,105630.0,105620.0,0.48352953]
[1749939299567,0.53368085,105630.0,105620.0,0.48352953]
[1749939299780,0.54314768,105630.0,105620.0,0.48352953]
[1749939300001,0.54375073,105630.0,105620.0,0.48352953]
[1749939300249,0.55261446,105630.0,105620.0,0.48352953]
[1749939300524,0.09858586,105630.0,105620.0,0.48352953]
[1749939300758,0.5260237,105630.0,105620.0,0.48352953]
[1749939301256,0.55261531,105630.0,105620.0,0.48352953]
[1749939301488,0.54314833,105630.0,105620.0,0.48352953]
[1749939301745,0.55261534,105630.0,105620.0,0.48352953]
[1749939301963,0.55261535,105630.0,105620.0,0.48352953]
[1749939302193,0.52542058,105630.0,105620.0,0.48352953]
[1749939302424,0.49762253,105630.0,105620.0,0.57967875]
[1749939302650,0.52421418,105630.0,105620.0,0.48352953]
[1749939302866,0.4717562,105630.0,105620.0,0.48352953]
[1749939303091,0.49008656,105630.0,105620.0,0.48352953]
[1749939303299,0.49955329,105630.0,105620.0,0.57977129]
[1749939303512,0.4812227,105630.0,105620.0,0.67592051]
[1749939303722,0.49955312,105630.0,105620.0,0.67592051]
[1749939303934,0.49955313,105630.0,105620.0,0.67592051]
[1749939304144,0.48182554,105630.0,105620.0,0.67592051]
[1749939304356,0.49955307,105630.0,105620.0,0.67592051]
[1749939304790,0.50901992,105630.0,105620.0,0.67592051]
[1749939305000,0.06445765,105630.0,105620.0,0.67592051]
[1749939305208,0.0378663,105630.0,105620.0,0.57977129]
[1749939305393,0.02839948,105630.0,105620.0,0.57977129]
[1749939305651,0.0378663,105630.0,105620.0,0.57977129]
[1749939306329,0.08852291,105630.0,105620.0,0.57977129]
[1749939306547,0.07968174,105630.0,105620.0,0.57977129]
[1749939306774,0.09745456,105630.0,105620.0,0.57977129]
[1749939307217,0.07968174,105630.0,105620.0,0.57977129]
[1749939307421,0.09745454,105630.0,105620.0,0.57977129]
[1749939307646,0.08856814,105630.0,105620.0,0.57977129]
[1749939307892,0.09745454,105630.0,105620.0,0.57977129]
[1749939308101,0.54201682,105630.0,105620.0,0.57977129]
[1749939308320,0.54868162,105630.0,105620.0,0.57977129]
[1749939308546,0.54201682,105630.0,105620.0,0.57977129]
[1749939308761,0.53090881,105630.0,105620.0,0.57977129]
[1749939308972,0.52202241,105630.0,105620.0,0.57977129]
[1749939309181,0.54868162,105630.0,105620.0,0.57977129]
[1749939309396,0.54868153,105630.0,105620.0,0.57977129]
[1749939309606,0.5392148,105630.0,105620.0,0.57977129]
[1749939309811,0.53921481,105630.0,105620.0,0.57977129]
[1749939310019,0.53032839,105630.0,105620.0,0.57977129]
[1749939310226,0.5486816,105630.0,105620.0,0.57977129]
[1749939310729,0.53921478,105630.0,105620.0,0.57977129]
[1749939310947,0.5486816,105630.0,105620.0,0.57977129]
[1749939311157,0.53921484,105630.0,105620.0,0.57977129]
[1749939311363,0.54868165,105630.0,105620.0,0.57977129]
[1749939311593,0.54868166,105630.0,105620.0,0.57977129]
[1749939311799,0.53979528,105630.0,105620.0,0.57977129]
[1749939312236,0.54868169,105630.0,105620.0,0.57977129]
[1749939312456,0.53979526,105630.0,105620.0,0.57977129]
[1749939312680,0.11358631,105630.0,105620.0,0.57977129]
[1749939312920,0.55148378,105630.0,105620.0,0.57977129]
[1749939313124,0.54926217,105630.0,105620.0,0.57977129]
[1749939313338,0.54037575,105630.0,105620.0,0.57977129]
[1749939313760,0.73860232,105630.0,105620.0,0.57977138]
[1749939313971,0.73860233,105630.0,105620.0,0.57977138]
[1749939314191,0.7230511,105630.0,105620.0,0.57977138]
[1749939314404,0.82528528,105630.0,105620.0,0.57022402]
[1749939314644,0.54868239,105630.0,105620.0,0.57969129]
[1749939314854,0.51535823,105630.0,105620.0,0.57969129]
[1749939315066,0.52424464,105630.0,105620.0,0.57969129]
[1749939315281,0.53090945,105630.0,105620.0,0.57969129]
[1749939315564,0.54201747,105630.0,105620.0,0.57969129]
[1749939315796,0.53090945,105630.0,105620.0,0.57969129]
[1749939315939,0.54201747,105630.0,105620.0,0.57969129]
[1749939316349,0.55814928,105630.0,105620.0,0.57969129]
[1749939316554,0.55814932,105630.0,105620.0,0.57969147]
[1749939316761,0.5403765,105630.0,105620.0,0.58915874]
[1749939316970,0.39907646,105630.0,105620.0,0.11180884]
[1749939317189,0.79746585,105630.0,105620.0,0.43401472]
[1749939317399,0.79746585,105630.0,105620.0,0.24465674]
[1749939317615,0.79688556,105630.0,105620.0,0.20378884]
[1749939317830,0.80577206,105630.0,105620.0,0.20378884]
[1749939318075,0.70962287,105630.0,105620.0,0.04790884]
[1749939318265,0.69184989,105630.0,105620.0,0.04790884]
[1749939318494,0.70073644,105630.0,105620.0,0.20378884]
[1749939318720,0.70295809,105630.0,105620.0,0.20378884]
[1749939318918,0.68518356,105630.0,105620.0,0.20378884]
[1749939319172,0.7879967,105630.0,105620.0,0.20378884]
[1749939319500,0.80576702,105630.0,105620.0,0.20378884]
[1749939319683,0.79021799,105630.0,105620.0,0.20378884]
[1749939319844,0.78133282,105630.0,105620.0,0.20378884]
[1749939320047,0.80576714,105630.0,105620.0,0.20378884]
[1749939320254,0.78799675,105630.0,105620.0,0.20378884]
[1749939320455,0.79021806,105630.0,105620.0,0.04790884]
[1749939320678,0.80576714,105630.0,105620.0,0.04790884]
[1749939320880,0.77244767,105630.0,105620.0,0.04790884]
[1749939321041,0.78799694,105630.0,105620.0,0.04790884]
[1749939321245,0.70295441,105630.0,105620.0,0.04790884]
[1749939321450,0.7096183,105630.0,105620.0,0.08040884]
[1749939321670,0.67629845,105630.0,105620.0,0.08040884]
[1749939321870,0.70295438,105630.0,105620.0,0.08040884]
[1749939322073,0.70961836,105630.0,105620.0,0.08040884]
[1749939322496,0.70073305,105630.0,105620.0,0.08040884]
[1749939322700,0.68518373,105630.0,105620.0,0.08987674]
[1749939322903,0.70073298,105630.0,105620.0,0.08987674]
[1749939323109,0.70961831,105630.0,105620.0,0.08987674]
[1749939323476,0.69184772,105630.0,105620.0,0.08987674]
[1749939323680,0.68296242,105630.0,105620.0,0.08987674]
[1749939323912,0.70073303,105630.0,105620.0,0.08987674]
[1749939324088,0.70961833,105630.0,105620.0,0.08987674]
[1749939324574,0.67629845,105630.0,105620.0,0.08987674]
[1749939324780,0.70961833,105630.0,105620.0,0.12177674]
[1749939324987,0.69184772,105630.0,105620.0,0.12177674]
[1749939325197,0.60961833,105630.0,105620.0,0.12177674]
[1749939325412,0.61908533,105630.0,105620.0,0.32060262]
[1749939325849,0.61020002,105630.0,105620.0,0.32060262]
[1749939326062,0.60131472,105630.0,105620.0,0.32060262]